bitfinex/quotes_SOLUSD_20250718
["timestamp","ask_amount","ask_price","bid_price","bid_amount"]
[1752798060959,0.06,176.18,176.16,6.35543644]
[1752798061981,0.06,176.18,176.17,84.80645576]
[1752798062859,0.1,176.22,176.21,26.0]
[1752798063060,0.1,176.22,176.21,61.71543644]
[1752798063309,0.1,176.22,176.21,79.13012041]
[1752798063984,0.1,176.22,176.21,84.80516722]
[1752798064168,0.1,176.22,176.21,61.03504681]
[1752798064370,0.76,176.22,176.21,61.03504681]
[1752798064768,0.76,176.22,176.21,31.67504681]
[1752798065284,0.1,176.22,176.21,31.67504681]
[1752798065785,0.1,176.22,176.21,55.44516722]
[1752798065786,1e-08,176.22,176.21,55.44516722]
[1752798066380,0.1,176.27,176.26,6.35543644]
[1752798066699,0.1,176.27,176.24,26.0]
[1752798066867,0.1,176.27,176.24,32.35543644]
[1752798067064,0.76,176.27,176.25,29.34]
[1752798067762,0.76,176.27,176.25,55.34]
[1752798068159,0.1,176.27,176.26,12.6588734]
[1752798068683,0.1,176.27,176.26,12.0288734]
[1752798069069,0.1,176.27,176.26,12.6588734]
[1752798069883,0.1,176.28,176.27,16.78468397]
[1752798070083,8.1182,176.39,176.27,16.78468397]
[1752798070084,0.66,176.35,176.32,6.35543644]
[1752798070290,0.66,176.34,176.32,29.34]
[1752798070466,0.66,176.34,176.3,31.67209645]
[1752798070672,0.66,176.36,176.31,6.35543644]
[1752798070870,0.66,176.35,176.31,6.35543644]
[1752798071073,14.47363644,176.39,176.33,6.35543644]
[1752798071274,0.66,176.37,176.34,29.34]
[1752798071486,31.66792626,176.44,176.36,6.35543644]
[1752798071785,0.66,176.4,176.36,6.35543644]
[1752798071988,0.66,176.39,176.36,29.34]
[1752798072192,6.35543644,176.41,176.36,35.01021924]
[1752798072394,6.35543644,176.43,176.37,6.35543644]
[1752798072570,7.01543644,176.43,176.37,6.35543644]
[1752798072766,0.66,176.42,176.38,6.35543644]
[1752798072990,0.66,176.42,176.37,6.35543644]
[1752798073170,8.1182,176.45,176.38,6.35543644]
[1752798073377,7.01543644,176.44,176.39,5.66925562]
[1752798073577,0.66,176.43,176.38,41.34496187]
[1752798073800,0.66,176.42,176.38,41.34496187]
[1752798074099,0.66,176.41,176.38,29.32]
[1752798075370,12.02355827,176.43,176.34,40.17669023]
[1752798075371,6.35543644,176.39,176.36,29.32]
[1752798075683,0.66,176.38,176.36,6.35543644]
[1752798075892,0.66,176.38,176.35,35.67543644]
[1752798076888,0.66,176.4,176.35,41.34571845]
[1752798077089,0.66,176.4,176.36,6.35543644]
[1752798077295,0.66,176.4,176.37,29.32]
[1752798077490,8.1182,176.45,176.37,29.32]
[1752798077696,6.35543644,176.42,176.37,29.32]
[1752798078078,6.35543644,176.42,176.37,34.9897949]
[1752798078079,0.66,176.41,176.37,34.9897949]
[1752798078584,6.35543644,176.43,176.37,41.34523134]
[1752798078786,8.7782,176.45,176.38,0.63]
[1752798078982,8.1182,176.45,176.4,6.35543644]
[1752798079182,0.66,176.46,176.41,36.30543644]
[1752798079383,6.35543644,176.47,176.42,35.67543644]
[1752798079584,6.35543644,176.47,176.42,29.32]
[1752798079783,0.66,176.46,176.42,29.32]
[1752798079996,0.66,176.45,176.42,29.32]
[1752798080499,12.02244485,176.46,176.42,29.32]
[1752798080685,6.35543644,176.43,176.4,29.32]
[1752798080893,0.66,176.42,176.4,29.32]
[1752798081207,0.66,176.41,176.38,29.32]
[1752798081615,5.85543644,176.43,176.38,6.35543644]
[1752798081819,0.66,176.43,176.39,6.35543644]
[1752798082109,0.66,176.43,176.4,29.32]
[1752798083106,0.66,176.43,176.4,34.98891355]
[1752798083493,0.66,176.46,176.41,6.35543644]
[1752798083708,7.01543644,176.46,176.41,6.35543644]
[1752798083891,7.01543644,176.45,176.42,29.3]
[1752798084096,0.66,176.44,176.42,29.3]
[1752798084410,6.35543644,176.46,176.42,5.6682789]
[1752798084710,0.66,176.45,176.39,55.3]
[1752798084898,6.35543644,176.43,176.39,55.3]
[1752798085101,0.66,176.42,176.39,55.3]
[1752798085725,6.35543644,176.44,176.39,60.96915758]
[1752798086011,0.66,176.43,176.39,67.32459402]
[1752798086205,7.01543644,176.43,176.39,60.96915758]
[1752798086591,0.66,176.43,176.39,60.96915758]
[1752798087001,0.66,176.43,176.39,67.32459402]
[1752798087918,0.66,176.46,176.4,6.98543644]
[1752798088091,6.35543644,176.45,176.41,29.3]
[1752798088413,7.01543644,176.46,176.42,26.0]
[1752798088709,6.35543644,176.45,176.42,26.0]
[1752798088906,7.01543644,176.45,176.42,26.0]
[1752798090098,7.06543644,176.44,176.41,55.3]
[1752798090516,0.71,176.44,176.41,60.96859455]
[1752798090711,0.71,176.44,176.41,31.66859455]
[1752798090922,0.71,176.44,176.41,60.96859455]
[1752798091220,6.35543644,176.45,176.41,60.96859455]
[1752798091406,7.06543644,176.46,176.41,67.32403099]
[1752798091609,0.71,176.46,176.41,67.95403099]
[1752798091807,6.35543644,176.44,176.41,26.0]
[1752798092123,6.35543644,176.47,176.42,6.98543644]
[1752798092420,0.71,176.48,176.43,6.98543644]
[1752798092626,7.06543644,176.48,176.43,6.98543644]
[1752798092828,7.8704,176.5,176.46,6.35543644]
[1752798093028,8.5804,176.5,176.46,6.35543644]
[1752798093410,8.5804,176.5,176.45,35.65543644]
[1752798093615,6.35543644,176.46,176.44,26.0]
[1752798093806,0.71,176.45,176.43,5.6679473]
[1752798094008,6.35543644,176.44,176.38,6.35543644]
[1752798094220,6.35543644,176.42,176.39,29.3]
[1752798094526,5.6660434,176.49,176.37,29.28]
[1752798094527,6.35543644,176.4,176.37,29.28]
[1752798094711,7.06543644,176.39,176.37,29.28]
[1752798094905,0.71,176.39,176.37,29.28]
[1752798095115,0.71,176.39,176.35,60.95054153]
[1752798096438,6.35543644,176.4,176.35,67.93597797]
[1752798096604,0.71,176.4,176.35,67.30597797]
[1752798096807,0.71,176.42,176.38,32.35543644]
[1752798097027,6.35543644,176.43,176.38,32.35543644]
[1752798097227,6.35543644,176.44,176.38,32.35543644]
[1752798097430,7.06543644,176.43,176.39,29.28]
[1752798097739,0.71,176.42,176.39,29.28]
[1752798097912,0.71,176.42,176.38,26.0]
[1752798097913,0.71,176.41,176.38,26.0]
[1752798098229,0.71,176.41,176.38,31.66928933]
[1752798098408,0.71,176.4,176.38,31.66928933]
[1752798098830,6.35543644,176.41,176.38,31.66928933]
[1752798099032,7.06543644,176.41,176.38,31.66928933]
[1752798099232,0.71,176.4,176.38,31.66928933]
[1752798099618,7.06543644,176.4,176.38,31.66928933]
[1752798099834,0.71,176.39,176.37,34.94980035]
[1752798100033,0.71,176.44,176.37,41.93523679]
[1752798100234,7.06543644,176.44,176.41,5.66861289]
[1752798100961,12.46353644,176.45,176.41,5.66861289]
[1752798101132,13.17353644,176.45,176.41,5.66861289]
[1752798102119,6.8181,176.45,176.41,5.66861289]
[1752798102423,7.06543644,176.45,176.41,5.66861289]
[1752798102622,7.95533644,176.46,176.41,5.66861289]
[1752798102820,7.95533644,176.46,176.41,34.94861289]
[1752798103035,8.66533644,176.46,176.41,34.94861289]
[1752798103234,2.3099,176.46,176.41,34.94861289]
[1752798103421,6.3316,176.49,176.42,6.98543644]
[1752798103422,7.06543644,176.48,176.42,6.98543644]
[1752798103622,0.71,176.48,176.42,6.98543644]
[1752798103852,7.06543644,176.48,176.43,6.35543644]
[1752798104349,6.3316,176.49,176.44,35.63543644]
[1752798104520,6.3316,176.49,176.45,12.02276429]
[1752798104715,0.71,176.48,176.45,5.66732785]
[1752798105113,0.71,176.48,176.45,12.02276429]
[1752798105356,0.71,176.48,176.45,5.66732785]
[1752798106534,6.3316,176.49,176.45,12.02276429]
[1752798106733,7.0416,176.49,176.45,5.66732785]
[1752798107140,13.39703644,176.49,176.45,5.66732785]
[1752798107755,0.71,176.48,176.45,5.66732785]
[1752798108551,12.68703644,176.49,176.45,5.66732785]
[1752798108752,13.39703644,176.49,176.45,5.66732785]
[1752798109453,7.0416,176.49,176.45,5.66732785]
[1752798109757,13.39703644,176.49,176.45,5.66732785]
[1752798109934,0.71,176.48,176.45,5.66732785]
[1752798110522,6.35543644,176.5,176.45,6.29732785]
[1752798110729,2.4187,176.51,176.45,12.65276429]
[1752798110959,2.4187,176.51,176.46,6.35543644]
[1752798111248,2.4187,176.51,176.46,6.98543644]
[1752798111451,0.71,176.5,176.45,5.66732785]
[1752798111749,7.06543644,176.49,176.45,5.66732785]
[1752798112055,0.71,176.49,176.45,12.02276429]
[1752798112258,2.4187,176.51,176.45,12.65276429]
[1752798112565,8.77413644,176.51,176.45,12.65276429]
[1752798112858,7.06543644,176.5,176.45,12.02276429]
[1752798113263,8.06413644,176.51,176.46,0.63]
[1752798113434,8.06413644,176.51,176.45,12.02276429]
[1752798113770,0.71,176.5,176.45,12.02276429]
[1752798114143,0.71,176.5,176.45,12.65276429]
[1752798114366,0.71,176.5,176.46,6.35543644]
[1752798114531,0.06,176.51,176.49,6.35543644]
[1752798114734,0.06,176.51,176.5,6.35543644]
[1752798115242,0.06,176.51,176.5,6.98543644]
[1752798115447,0.06,176.51,176.5,36.26543644]
[1752798116237,0.06,176.51,176.5,29.91]
[1752798116441,0.06,176.51,176.5,36.26543644]
[1752798116839,0.06,176.51,176.5,41.93115881]
[1752798117634,0.06,176.51,176.5,58.71584278]
[1752798119233,0.06,176.51,176.5,65.07127922]
[1752798119438,0.06,176.51,176.5,58.71584278]
[1752798119633,0.06,176.57,176.53,26.0]
[1752798119845,0.06,176.57,176.55,6.35543644]
[1752798120040,0.06,176.57,176.56,35.61543644]
[1752798121038,0.76,176.57,176.56,29.26]
[1752798121250,7.11543644,176.57,176.53,26.0]
[1752798121469,0.7,176.56,176.54,29.26]
[1752798121846,0.06,176.57,176.54,29.26]
[1752798121847,0.7,176.55,176.54,29.26]
[1752798122038,0.7,176.55,176.48,0.63]
[1752798122352,6.35543644,176.54,176.49,35.61543644]
[1752798122663,6.35543644,176.54,176.5,29.26]
[1752798122664,0.7,176.53,176.5,29.26]
[1752798122848,0.7,176.52,176.5,29.26]
[1752798123047,7.05543644,176.55,176.5,34.92549767]
[1752798123240,0.06,176.57,176.54,6.35543644]
[1752798123440,0.06,176.57,176.53,26.0]
[1752798123441,1e-08,176.57,176.56,16.78468397]
[1752798123657,1e-08,176.57,176.56,23.14012041]
[1752798123857,1e-08,176.57,176.56,23.77012041]
[1752798124255,1e-08,176.57,176.56,26.61385499]
[1752798124761,1e-08,176.57,176.56,23.77012041]
[1752798125338,1e-08,176.57,176.56,29.43391741]
[1752798125543,1e-08,176.57,176.56,58.69391741]
[1752798125758,1e-08,176.57,176.56,29.43391741]
[1752798125967,1e-08,176.57,176.56,28.80391741]
[1752798126144,1e-08,176.57,176.56,58.06391741]
[1752798126351,1e-08,176.57,176.56,58.69391741]
[1752798126948,1e-08,176.57,176.56,62.4083606]
[1752798127351,1e-08,176.57,176.56,65.27300549]
[1752798129771,0.7,176.69,176.6,42.78468397]
[1752798129971,0.7,176.69,176.65,10.06987963]
[1752798130182,0.7,176.69,176.66,29.26]
[1752798130387,0.7,176.68,176.66,29.26]
[1752798130691,0.7,176.67,176.66,29.26]
[1752798131380,10.06987963,176.69,176.66,29.26]
[1752798131381,0.7,176.69,176.66,29.26]
[1752798131551,0.7,176.68,176.66,29.26]
[1752798131757,0.7,176.67,176.66,29.26]
[1752798133584,6.36027056,176.67,176.63,10.06987963]
[1752798133772,5.66027056,176.67,176.64,29.24]
[1752798133970,0.7,176.66,176.64,29.24]
[1752798134368,0.7,176.65,176.64,29.24]
[1752798134890,0.7,176.67,176.64,39.30987963]
[1752798135263,10.06987963,176.69,176.64,39.30987963]
[1752798135470,0.7,176.66,176.64,29.24]
[1752798135868,0.7,176.65,176.64,29.24]
[1752798137178,16.42918919,176.7,176.64,44.9710845]
[1752798137373,16.42918919,176.7,176.65,10.06987963]
[1752798137574,7.7139,176.71,176.66,39.30987963]
[1752798137575,0.7,176.69,176.66,39.30987963]
[1752798138173,0.7,176.73,176.68,10.06987963]
[1752798138364,8.2501,176.75,176.7,10.06987963]
[1752798138677,8.2501,176.75,176.71,39.30987963]
[1752798139109,8.2501,176.75,176.71,29.24]
[1752798139400,7.5501,176.79,176.74,10.06987963]
[1752798139576,7.5501,176.79,176.75,39.28987963]
[1752798139782,7.5501,176.79,176.76,10.06987963]
[1752798139991,8.2501,176.86,176.81,26.0]
[1752798140194,0.7,176.85,176.81,26.0]
[1752798140382,0.7,176.85,176.82,39.28987963]
[1752798140696,10.06987963,176.87,176.83,10.06987963]
[1752798140697,0.7,176.87,176.83,10.06987963]
[1752798140858,16.10347963,176.9,176.85,10.06987963]
[1752798141062,0.7,176.89,176.86,29.22]
[1752798141290,0.7,176.88,176.84,10.06987963]
[1752798141504,0.7,176.87,176.82,26.0]
[1752798141667,0.7,176.87,176.83,39.28987963]
[1752798141969,0.7,176.87,176.84,39.28987963]
[1752798142166,0.7,176.87,176.85,29.22]
[1752798142374,6.7336,176.9,176.86,10.06987963]
[1752798142593,6.7336,176.9,176.87,29.22]
[1752798142797,6.0336,176.9,176.87,29.22]
[1752798143007,0.7,176.89,176.87,29.22]
[1752798143215,10.76987963,176.89,176.88,29.22]
[1752798144097,0.7,176.89,176.88,29.22]
[1752798144584,16.42311045,176.89,176.88,29.22]
[1752798145878,16.42311045,176.89,176.87,29.2]
[1752798146073,16.42343005,176.88,176.87,29.2]
[1752798146286,16.42343005,176.88,176.81,26.0]
[1752798146483,0.7,176.87,176.81,10.06987963]
[1752798146687,0.7,176.87,176.82,29.2]
[1752798146688,10.76987963,176.87,176.82,29.2]
[1752798146889,0.7,176.86,176.82,29.2]
[1752798147087,0.7,176.85,176.82,29.2]
[1752798147978,0.7,176.87,176.82,39.26987963]
[1752798148175,0.7,176.87,176.83,10.06987963]
[1752798148481,0.7,176.87,176.82,39.26987963]
[1752798148680,0.7,176.87,176.83,10.06987963]
[1752798149282,16.43318488,176.89,176.83,10.69987963]
[1752798149496,16.43318488,176.89,176.84,10.06987963]
[1752798149800,16.43318488,176.89,176.85,29.2]
[1752798150508,0.06,176.88,176.85,29.2]
[1752798151383,10.77987963,176.87,176.85,29.2]
[1752798151593,0.06,176.88,176.85,39.26987963]
[1752798152602,10.06987963,176.86,176.73,0.63]
[1752798152902,10.06987963,176.82,176.76,10.06987963]
[1752798153099,10.06987963,176.82,176.77,39.26987963]
[1752798153402,16.4358262,176.81,176.77,29.2]
[1752798153610,0.71,176.8,176.77,29.2]
[1752798153902,10.12987963,176.88,176.77,29.2]
[1752798153903,10.06987963,176.82,176.77,39.26987963]
[1752798154212,0.71,176.81,176.77,29.2]
[1752798154517,0.71,176.8,176.77,29.2]
[1752798155220,0.71,176.8,176.78,29.2]
[1752798155890,10.06987963,176.81,176.78,29.2]
[1752798156414,0.71,176.82,176.78,29.2]
[1752798156582,6.36387007,176.87,176.81,10.06987963]
[1752798156784,16.4337497,176.87,176.82,39.26987963]
[1752798157283,10.77987963,176.87,176.82,39.26987963]
[1752798157686,0.06,176.88,176.84,10.06987963]
[1752798157886,0.06,176.88,176.85,29.2]
[1752798158518,0.06,176.88,176.87,10.06987963]
[1752798159002,0.06,176.88,176.87,10.69987963]
[1752798159404,6.36003672,176.99,176.9,26.0]
[1752798159604,10.06987963,176.98,176.92,10.06987963]
[1752798159809,6.36003672,176.99,176.94,10.06987963]
[1752798159810,10.06987963,176.99,176.94,10.06987963]
[1752798160002,10.06987963,176.98,176.95,29.2]
[1752798160188,10.06987963,176.98,176.96,29.2]
[1752798160388,0.71,176.97,176.92,5.65216801]
[1752798160587,10.77987963,176.96,176.93,29.18]
[1752798160800,0.71,176.95,176.93,29.18]
[1752798161088,0.71,176.94,176.93,29.18]
[1752798161290,10.77987963,176.94,176.93,29.18]
[1752798161892,6.36118768,176.96,176.9,5.65280274]
[1752798162098,10.06987963,176.95,176.91,29.18]
[1752798162286,10.06987963,176.93,176.91,29.18]
[1752798162685,10.06987963,176.93,176.88,15.7231759]
[1752798162888,10.77987963,176.94,176.89,29.18]
[1752798163098,0.71,176.93,176.89,29.18]
[1752798163304,10.77987963,176.93,176.89,29.18]
[1752798163797,10.77987963,176.93,176.9,29.18]
[1752798164610,0.71,176.93,176.9,29.18]
[1752798164818,10.06987963,176.94,176.9,29.18]
[1752798165188,16.43154008,176.94,176.9,29.18]
[1752798166194,10.06987963,176.93,176.9,29.18]
[1752798167198,10.77987963,176.98,176.92,10.06987963]
[1752798167396,10.77987963,176.98,176.93,29.18]
[1752798168204,10.06987963,176.97,176.93,29.18]
[1752798168400,6.36041817,176.98,176.93,29.18]
[1752798168401,6.5261,177.0,176.93,44.9017875]
[1752798168605,6.5261,177.0,176.95,10.06987963]
[1752798168806,6.5261,177.0,176.96,29.18]
[1752798168999,0.71,177.03,176.96,29.75]
[1752798169297,10.06987963,177.02,176.96,39.81987963]
[1752798169710,10.06987963,177.01,176.96,29.75]
[1752798170401,10.77987963,177.01,176.96,35.40091443]
[1752798171031,10.06987963,177.01,176.96,35.40091443]
[1752798171227,0.71,177.03,176.96,45.47079406]
[1752798171416,0.71,177.03,176.97,10.63987963]
[1752798171715,10.06987963,177.02,176.96,44.90079406]
[1752798171922,7.5774,177.1,177.01,10.06987963]
[1752798172112,0.71,177.09,177.03,10.06987963]
[1752798172305,5.64700911,177.09,177.03,15.71862771]
[1752798172504,15.71688874,177.09,177.03,5.64874808]
[1752798172713,10.06987963,177.09,177.04,10.63987963]
[1752798172904,18.35727963,177.1,177.05,29.18]
[1752798173502,8.2874,177.1,177.05,29.18]
[1752798173739,0.71,177.13,177.05,39.81987963]
[1752798173949,0.71,177.13,177.06,10.63987963]
[1752798174227,16.07917963,177.14,177.09,10.06987963]
[1752798174433,12.34797963,177.15,177.1,5.64652738]
[1752798175000,10.06987963,177.13,177.09,29.16]
[1752798175227,10.06987963,177.11,177.09,29.16]
[1752798175409,10.77987963,177.11,177.09,29.16]
[1752798175613,10.06987963,177.12,177.09,29.16]
[1752798175820,0.71,177.14,177.09,29.16]
[1752798176128,10.06987963,177.14,177.09,39.22987963]
[1752798176345,0.06,177.17,177.11,10.06987963]
[1752798176500,0.06,177.17,177.15,10.06987963]
[1752798176812,0.06,177.17,177.16,39.22987963]
[1752798176997,0.06,177.17,177.16,29.16]
[1752798178007,0.71,177.26,177.16,46.51468397]
[1752798178205,10.06987963,177.24,177.18,10.06987963]
[1752798178410,15.71258361,177.22,177.19,29.18]
[1752798178609,0.71,177.21,177.19,29.18]
[1752798179307,10.72987963,177.2,177.19,29.18]
[1752798179509,10.72987963,177.2,177.16,29.18]
[1752798179826,10.72987963,177.19,177.16,29.18]
[1752798180319,6.30412143,177.18,177.13,29.18]
[1752798180635,10.72987963,177.17,177.13,29.18]
[1752798180810,10.06987963,177.16,177.13,29.18]
[1752798181007,10.72987963,177.17,177.13,29.18]
[1752798182133,10.72987963,177.16,177.13,29.18]
[1752798182721,0.66,177.15,177.13,29.18]
[1752798182920,10.72987963,177.14,177.05,0.51]
[1752798183118,10.06987963,177.08,177.02,6.15906606]
[1752798183435,10.06987963,177.08,177.03,29.18]
[1752798183627,10.06987963,177.09,177.03,39.24987963]
[1752798183829,0.66,177.1,177.03,29.69]
[1752798184017,10.06987963,177.08,177.03,29.69]
[1752798184339,10.06987963,177.06,177.0,10.57987963]
[1752798184560,10.06987963,177.04,177.0,29.18]
[1752798184711,10.06987963,177.03,177.0,29.18]
[1752798185126,10.06987963,177.04,177.0,29.18]
[1752798185329,10.06987963,177.06,177.0,39.75987963]
[1752798185532,10.06987963,177.05,177.0,29.69]
[1752798185833,10.06987963,177.05,177.0,29.18]
[1752798186034,16.37805463,177.05,177.0,29.18]
[1752798186233,10.72987963,177.05,177.0,29.18]
[1752798187039,16.37807922,177.05,177.0,29.18]
[1752798187336,10.72987963,177.05,177.0,34.82963227]
[1752798187539,6.2244,177.08,177.0,34.82963227]
[1752798187540,10.06987963,177.07,177.02,10.06987963]
[1752798187726,11.871623,177.08,177.02,10.57987963]
[1752798187933,21.94150263,177.08,177.02,16.22884444]
[1752798188116,16.29427963,177.08,177.02,16.22884444]
[1752798188432,10.06987963,177.08,177.03,10.06987963]
[1752798188848,10.06987963,177.08,177.03,29.16]
[1752798189025,10.72987963,177.08,177.03,29.16]
[1752798189225,16.37714899,177.08,177.03,29.16]
[1752798189424,10.06987963,177.07,177.03,29.16]
[1752798189623,10.72987963,177.07,177.03,29.16]
[1752798190018,10.06987963,177.06,177.03,29.16]
[1752798190229,0.66,177.07,177.03,29.16]
[1752798190442,10.72987963,177.07,177.03,29.16]
[1752798190851,0.66,177.07,177.03,29.16]
[1752798191060,1.623,177.11,177.03,29.16]
[1752798191061,6.30652738,177.1,177.03,29.16]
[1752798191232,10.06987963,177.08,177.03,35.31872228]
[1752798191838,10.06987963,177.07,177.03,29.16]
[1752798192040,10.72987963,177.06,177.03,29.16]
[1752798192342,0.66,177.06,177.03,29.16]
[1752798192524,10.06987963,177.07,177.03,29.16]
[1752798192920,5.64724678,177.08,177.03,34.80866436]
[1752798192921,10.06987963,177.08,177.03,34.80866436]
[1752798193134,10.06987963,177.08,177.03,35.31866436]
[1752798193552,1.623,177.11,177.04,10.57987963]
[1752798193553,10.06987963,177.1,177.04,10.57987963]
[1752798193725,11.69287963,177.11,177.05,10.06987963]
[1752798194041,11.69287963,177.11,177.05,5.64794951]
[1752798194042,10.06987963,177.1,177.05,5.64794951]
[1752798194431,10.72987963,177.1,177.05,5.64794951]
[1752798195064,0.66,177.1,177.05,15.71782914]
[1752798195263,10.06987963,177.08,177.03,5.67867007]
[1752798195427,10.06987963,177.07,177.03,0.03]
[1752798195750,10.72987963,177.07,177.03,0.03]
[1752798196079,10.06987963,177.06,177.03,0.03]
[1752798196554,10.72987963,177.07,177.03,0.03]
[1752798196741,10.72987963,177.06,177.03,0.03]
[1752798197658,10.06987963,177.06,177.03,0.03]
[1752798197959,10.72987963,177.05,177.03,0.03]
[1752798198142,10.06987963,177.04,177.03,0.03]
[1752798198328,10.72987963,177.04,177.03,0.03]
[1752798199342,0.66,177.04,177.03,0.03]
[1752798199546,10.72987963,177.04,177.03,0.03]
[1752798200473,16.37832066,177.04,177.03,0.03]
[1752798201967,22.72182066,177.04,177.03,0.03]
[1752798203854,51.88182066,177.04,177.03,0.03]
[1752798204065,39.50650463,177.04,177.03,0.03]
[1752798204772,22.72182066,177.04,177.03,0.03]
[1752798205654,39.50650463,177.04,177.03,0.03]
[1752798207746,39.50650463,177.04,177.03,1e-08]
[1752798207943,39.50650463,177.04,176.97,0.03]
[1752798207944,16.78468397,177.03,176.97,0.03]
[1752798208145,10.06987963,176.98,176.97,0.03]
[1752798208664,10.72987963,176.98,176.97,0.03]
[1752798209455,0.72,177.03,176.97,0.03]
[1752798209974,10.78987963,177.03,176.97,15.75055488]
[1752798210178,0.72,177.03,176.98,10.06987963]
[1752798210376,0.72,177.03,176.98,10.57987963]
[1752798210671,16.41337963,177.04,176.97,0.03]
[1752798210672,10.06987963,177.0,176.97,0.03]
[1752798211065,10.78987963,177.0,176.97,0.03]
[1752798211366,0.72,176.99,176.97,0.03]
[1752798211567,10.06987963,177.04,176.98,10.57987963]
[1752798211768,10.06987963,177.04,176.99,10.06987963]
[1752798211968,10.06987963,177.04,177.0,5.64971751]
[1752798212979,10.78987963,177.08,177.02,10.06987963]
[1752798213290,10.78987963,177.11,177.05,10.06987963]
[1752798213458,10.06987963,177.12,177.06,10.06987963]
[1752798213982,10.06987963,177.12,177.07,5.64748404]
[1752798214570,10.06987963,177.12,177.07,6.15748404]
[1752798214763,10.06987963,177.12,177.07,16.22736367]
[1752798215466,10.78987963,177.12,177.07,5.64748404]
[1752798215871,10.06987963,177.11,177.05,0.51]
[1752798216094,35.6252,177.14,177.05,20.27834753]
[1752798216257,10.06987963,177.13,177.05,20.27834753]
[1752798216453,10.06987963,177.13,177.07,10.06987963]
[1752798216784,10.12987963,177.12,177.06,10.57987963]
[1752798217255,10.06987963,177.1,177.04,0.51]
[1752798217471,10.06987963,177.06,177.0,10.57987963]
[1752798217678,10.06987963,177.06,177.01,5.64933952]
[1752798217869,0.72,177.05,177.0,15.71953986]
[1752798218087,10.78987963,177.05,177.0,5.64966023]
[1752798218399,10.06987963,177.05,177.0,5.64966023]
[1752798218598,5.647556,177.07,177.0,6.15966023]
[1752798218774,10.06987963,177.05,177.0,6.15966023]
[1752798219169,0.72,177.11,177.01,0.51]
[1752798219384,0.06,177.12,177.06,10.06987963]
[1752798219700,10.06987963,177.11,177.05,10.06987963]
[1752798220171,10.06987963,177.11,177.06,5.647803]
[1752798220367,10.78987963,177.11,177.06,5.647803]
[1752798221080,10.06987963,177.11,177.06,5.647803]
[1752798221284,10.78987963,177.1,177.06,5.647803]
[1752798221779,10.78987963,177.1,177.04,6.15814722]
[1752798221978,10.78987963,177.09,177.04,5.64814722]
[1752798222174,10.78987963,177.08,177.04,5.64814722]
[1752798222372,10.06987963,177.06,177.01,5.64936205]
[1752798222677,10.06987963,177.07,177.02,0.51]
[1752798222882,10.06987963,177.08,177.02,10.06987963]
[1752798223086,10.06987963,177.1,177.04,10.06987963]
[1752798223477,10.78987963,177.11,177.05,10.06987963]
[1752798223794,0.72,177.11,177.05,10.06987963]
[1752798224095,10.78987963,177.11,177.06,5.647803]
[1752798224898,10.78987963,177.1,177.06,5.647803]
[1752798225588,0.72,177.09,177.05,5.64802871]
[1752798225977,10.78987963,177.08,177.04,31.64840557]
[1752798227390,0.72,177.08,177.04,31.64840557]
[1752798228500,10.06987963,177.09,177.04,31.64840557]
[1752798228703,10.78987963,177.09,177.04,31.64840557]
[1752798229007,10.06987963,177.1,177.05,10.57987963]
[1752798229207,10.78987963,177.09,177.04,5.64840557]
[1752798229909,0.72,177.09,177.04,16.2282852]
[1752798230202,0.72,177.09,177.05,10.06987963]
[1752798230374,0.72,177.09,177.05,15.71772214]
[1752798231701,10.06987963,177.1,177.05,15.71772214]
[1752798231904,5.70588979,177.12,177.05,5.64784251]
[1752798232104,10.06987963,177.09,177.05,5.64784251]
[1752798232422,10.06987963,177.1,177.05,5.64784251]
[1752798232637,10.78987963,177.1,177.05,5.64784251]